bitfinex-derivatives/quotes_SOLF0:USTF0_20250907
["timestamp","ask_amount","ask_price","bid_price","bid_amount"]
[1757230804119,14.86930651,203.16,203.13,7.57]
[1757230804824,14.86930651,203.16,203.09,7.57]
[1757230805122,14.86930651,203.16,203.11,7.57]
[1757230805419,14.86930651,203.16,203.13,7.57]
[1757230805821,7.8,203.15,203.13,7.57]
[1757230807216,7.06930651,203.16,203.09,7.57]
[1757230807516,14.86930651,203.16,203.11,7.57]
[1757230807721,7.8,203.15,203.12,12.02496235]
[1757230808022,7.8,203.15,203.13,4.45496235]
[1757230808222,7.8,203.15,203.12,7.57]
[1757230808424,7.8,203.15,203.13,4.4555828]
[1757230808619,7.8,203.15,203.14,4.4555828]
[1757230813229,7.8,203.14,203.12,7.57]
[1757230813428,7.8,203.14,203.13,4.456815]
[1757230813928,9.33639029,203.14,203.13,4.456815]
[1757230814326,9.83639029,203.14,203.03,7.57]
[1757230814523,1.53639029,203.09,203.04,4.54564922]
[1757230814727,9.33639029,203.09,203.06,7.57]
[1757230814920,9.33639029,203.09,203.07,12.11564922]
[1757230815125,9.33639029,203.09,203.07,7.57]
[1757230817230,9.33639029,203.09,203.03,7.57]
[1757230817418,7.8,203.08,203.05,7.57]
[1757230817623,7.8,203.08,203.06,4.54408654]
[1757230817825,7.8,203.08,203.05,7.57]
[1757230820329,7.8,203.08,203.01,8.03]
[1757230820526,7.8,203.08,203.03,8.03]
[1757230820724,7.8,203.08,203.04,4.54358133]
[1757230821030,7.8,203.08,203.06,8.03]
[1757230821424,9.20639029,203.09,203.03,8.03]
[1757230821625,9.20639029,203.09,203.04,4.54269469]
[1757230821828,7.67,203.08,203.05,12.57269469]
[1757230822119,7.67,203.08,203.05,8.03]
[1757230822729,7.67,203.08,203.02,163.14393938]
[1757230823031,7.67,203.08,203.04,8.03]
[1757230823230,7.67,203.08,203.06,8.03]
[1757230823427,9.20639029,203.09,203.03,8.03]
[1757230823729,1.53639029,203.09,203.04,4.54123165]
[1757230823932,7.67,203.08,203.05,8.03]
[1757230824131,9.20639029,203.07,203.05,8.03]
[1757230824830,7.67,203.06,203.03,8.03]
[1757230825031,1.53639029,203.05,203.03,8.03]
[1757230825326,9.20639029,203.05,203.03,8.03]
[1757230826327,1.53639029,203.07,203.0,8.03]
[1757230826527,1.53639029,203.07,203.02,8.03]
[1757230826727,1.53639029,203.07,203.03,4.53961952]
[1757230826926,1.53639029,203.07,203.02,8.03]
[1757230827127,1.53639029,203.07,203.03,4.5392544]
[1757230827330,1.53639029,203.07,203.02,8.03]
[1757230827531,1.53639029,203.07,203.03,4.53879281]
[1757230827732,1.53639029,203.07,203.02,8.03]
[1757230828030,1.53639029,203.07,203.04,8.03]
[1757230828232,1.53639029,203.07,203.01,1.53639029]
[1757230828425,1.53639029,203.07,203.03,8.03]
[1757230828631,1.53639029,203.07,203.02,8.03]
[1757230828827,9.20639029,203.07,203.04,8.03]
[1757230829031,9.20639029,203.07,203.02,8.03]
[1757230829331,9.20639029,203.07,203.04,8.03]
[1757230830231,7.67,203.06,203.04,8.03]
[1757230830530,9.20639029,203.06,203.04,8.03]
[1757230832133,7.67,203.06,203.04,8.03]
[1757230836246,7.67,203.06,203.01,8.03]
[1757230836442,7.67,203.06,203.03,8.03]
[1757230836647,7.67,203.06,203.01,8.03]
[1757230836849,7.67,203.06,203.02,4.53348905]
[1757230837148,7.67,203.06,203.04,8.03]
[1757230840354,7.67,203.06,203.0,8.03]
[1757230840554,7.67,203.06,203.02,8.03]
[1757230840754,7.67,203.06,203.03,12.56235385]
[1757230841054,7.67,203.06,203.0,8.03]
[1757230841253,1.53639029,203.07,203.02,8.03]
[1757230841456,7.67,203.07,203.04,8.03]
[1757230841757,2.40281963,203.09,203.04,8.03]
[1757230842556,7.67,203.08,203.04,8.03]
[1757230842957,7.67,203.08,203.0,8.03]
[1757230843160,7.67,203.08,203.02,8.03]
[1757230843352,7.67,203.08,203.04,8.03]
[1757230843550,7.67,203.1,203.0,8.03]
[1757230843760,7.67,203.1,203.02,8.03]
[1757230843960,7.67,203.1,203.03,4.53206912]
[1757230844160,7.67,203.1,203.04,4.53206912]
[1757230844360,7.67,203.1,203.02,8.03]
[1757230844559,7.67,203.1,203.03,4.5320377]
[1757230844859,7.67,203.1,203.04,4.5320377]
[1757230845058,7.67,203.1,203.02,8.03]
[1757230845260,7.67,203.1,203.03,4.53181095]
[1757230845460,7.67,203.1,203.04,4.53181095]
[1757230845760,7.67,203.1,203.02,8.03]
[1757230845963,7.67,203.1,203.03,4.53200926]
[1757230846260,7.67,203.1,203.04,4.53200926]
[1757230846456,7.67,203.1,203.02,8.03]
[1757230846661,7.67,203.1,203.03,4.53234726]
[1757230846862,7.67,203.1,203.04,4.53234726]
[1757230847064,7.67,203.1,203.02,8.03]
[1757230847362,7.67,203.1,203.03,4.53234719]
[1757230847557,7.67,203.1,203.04,4.53234719]
[1757230847762,7.67,203.1,203.02,8.03]
[1757230848064,7.67,203.1,203.03,4.53271815]
[1757230848264,7.67,203.1,203.04,4.53271815]
[1757230848460,7.67,203.1,203.02,8.03]
[1757230848660,7.67,203.1,203.03,4.53343359]
[1757230848860,7.67,203.1,203.04,4.53343359]
[1757230849176,7.67,203.1,203.02,8.03]
[1757230849360,7.67,203.1,203.03,4.53343359]
[1757230849559,7.67,203.1,203.04,4.53343359]
[1757230849859,7.67,203.1,203.02,8.03]
[1757230850059,7.67,203.1,203.03,4.5339908]
[1757230850257,7.67,203.1,203.04,4.5339908]
[1757230850454,7.67,203.1,203.02,8.03]
[1757230850655,7.67,203.1,203.03,4.53343445]
[1757230850862,7.67,203.1,203.04,4.53343445]
[1757230851062,7.67,203.1,203.02,8.03]
[1757230851262,7.67,203.1,203.03,4.53343445]
[1757230851465,7.67,203.1,203.04,4.53343445]
[1757230851665,7.67,203.1,203.02,8.03]
[1757230851862,7.67,203.1,203.03,4.53446514]
[1757230852062,7.67,203.1,203.04,4.53446514]
[1757230852365,7.67,203.1,203.02,8.03]
[1757230852567,7.67,203.1,203.03,4.53532135]
[1757230852768,7.67,203.1,203.04,4.53532135]
[1757230852964,7.67,203.1,203.02,8.03]
[1757230853264,13.20291622,203.1,203.03,4.53532135]
[1757230853465,13.20291622,203.1,203.04,12.11532135]
[1757230853666,13.20291622,203.1,203.04,7.58]
[1757230855268,13.20291622,203.1,203.05,4.53942288]
[1757230855468,13.20291622,203.1,203.04,7.58]
[1757230855762,13.20291622,203.1,203.05,4.53942288]
[1757230855968,13.20291622,203.1,203.04,7.58]
[1757230856267,5.53291622,203.09,203.05,4.54120709]
[1757230856462,8.05,203.08,203.01,7.58]
[1757230856661,8.05,203.08,203.03,7.58]
[1757230856858,8.05,203.08,203.04,4.54120709]
[1757230857168,8.05,203.08,203.06,7.58]
[1757230859268,13.58291622,203.08,203.06,7.58]
[1757230859969,8.05,203.08,203.06,7.58]
[1757230862273,13.58291622,203.08,203.06,7.58]
[1757230863875,5.53291622,203.09,203.02,7.58]
[1757230864074,8.26663851,203.12,203.01,2.40281963]
[1757230864075,5.53291622,203.1,203.04,7.58]
[1757230864266,5.53291622,203.1,203.05,4.51922035]
[1757230864468,13.58291622,203.1,203.06,8.83724685]
[1757230864670,13.58291622,203.1,203.08,7.58]
[1757230864974,113.49770294,203.13,203.09,16.47690031]
[1757230864975,5.53291622,203.11,203.09,16.47690031]
[1757230865170,8.05,203.12,203.1,16.47327448]
[1757230865374,119.03061916,203.13,203.02,7.58]
[1757230865675,119.03061916,203.13,203.04,7.58]
[1757230865878,119.03061916,203.13,203.06,7.58]
[1757230866174,119.03061916,203.13,203.07,4.57752871]
[1757230866378,8.05,203.12,203.08,4.57752871]
[1757230866579,8.05,203.12,203.1,7.58]
[1757230872483,8.05,203.12,203.04,7.58]
[1757230872682,8.05,203.12,203.05,8.87663468]
[1757230872882,8.05,203.12,203.07,7.58]
[1757230873179,13.58291622,203.15,203.09,7.58]
[1757230873476,13.58291622,203.15,203.03,2.40281963]
[1757230873477,8.05,203.14,203.1,8.87663468]
[1757230873682,8.05,203.14,203.07,7.58]
[1757230873883,8.05,203.14,203.09,7.58]
[1757230874185,8.05,203.14,203.1,8.87424671]
[1757230874383,8.05,203.14,203.08,7.58]
[1757230874684,8.05,203.14,203.1,7.58]
[1757230874879,8.05,203.14,203.12,7.58]
[1757230875177,5.53291622,203.16,203.08,7.58]
[1757230875382,5.53291622,203.17,203.1,7.58]
[1757230875585,8.05,203.18,203.12,7.58]
[1757230875784,8.05,203.18,203.14,7.58]
[1757230876085,8.05,203.18,203.1,7.58]
[1757230876281,8.05,203.18,203.12,7.58]
[1757230876582,8.05,203.18,203.13,8.86051493]
[1757230876884,8.05,203.18,203.15,7.58]
[1757230877285,8.05,203.18,203.1,7.58]
[1757230877491,8.05,203.18,203.12,7.58]
[1757230877681,8.05,203.18,203.13,8.86383828]
[1757230877882,8.05,203.18,203.15,7.58]
[1757230878082,8.05,203.18,203.1,7.58]
[1757230878285,8.05,203.18,203.11,8.85983135]
[1757230878482,8.05,203.18,203.12,8.85983135]
[1757230878688,8.05,203.18,203.13,8.85983135]
[1757230878884,8.05,203.18,203.15,7.58]
[1757230879086,8.05,203.18,203.11,7.58]
[1757230879389,8.05,203.18,203.12,8.85617516]
[1757230879582,8.05,203.18,203.14,8.17]
[1757230879784,8.05,203.18,203.11,8.17]
[1757230879984,8.05,203.18,203.12,8.85599705]
[1757230880179,8.05,203.18,203.14,8.17]
[1757230880486,8.05,203.18,203.11,8.17]
[1757230880688,8.05,203.18,203.13,8.17]
[1757230880883,8.05,203.18,203.15,8.17]
[1757230881091,8.05,203.18,203.11,8.17]
[1757230881389,8.05,203.18,203.13,8.17]
[1757230881585,8.05,203.18,203.14,4.29959218]
[1757230881883,8.05,203.18,203.12,8.17]
[1757230882090,8.05,203.18,203.14,8.17]
[1757230882285,8.05,203.18,203.12,8.17]
[1757230882484,8.05,203.18,203.14,8.17]
[1757230882686,8.05,203.18,203.12,8.17]
[1757230882989,8.05,203.18,203.13,8.86207807]
[1757230883190,8.05,203.18,203.12,8.17]
[1757230883390,8.05,203.18,203.13,8.86005241]
[1757230883591,8.05,203.18,203.12,8.17]
[1757230883890,8.05,203.18,203.14,8.17]
[1757230884090,8.05,203.18,203.12,8.17]
[1757230884291,8.05,203.18,203.13,8.85840146]
[1757230884490,8.05,203.18,203.12,8.17]
[1757230884687,8.05,203.18,203.13,8.8583252]
[1757230884881,8.05,203.18,203.12,8.17]
[1757230885083,8.05,203.18,203.14,8.17]
[1757230885286,8.05,203.18,203.12,8.17]
[1757230885487,8.05,203.18,203.14,8.17]
[1757230885693,8.05,203.18,203.12,8.17]
[1757230885989,8.05,203.18,203.14,8.17]
[1757230886193,8.05,203.18,203.12,8.17]
[1757230886488,8.05,203.18,203.13,8.85798632]
[1757230886690,8.05,203.18,203.12,8.17]
[1757230886890,8.05,203.18,203.13,8.85765479]
[1757230887188,8.05,203.18,203.12,8.17]
[1757230887385,8.05,203.18,203.14,8.17]
[1757230887586,8.05,203.18,203.12,8.17]
[1757230887783,8.05,203.18,203.13,8.85668113]
[1757230887993,8.05,203.18,203.12,8.17]
[1757230888186,8.05,203.18,203.13,4.29553764]
[1757230888385,8.05,203.18,203.12,8.17]
[1757230888588,8.05,203.18,203.13,4.29540722]
[1757230888795,8.05,203.18,203.13,8.17]
[1757230889096,8.05,203.18,203.14,4.29473517]
[1757230889392,8.05,203.18,203.13,8.17]
[1757230889593,8.05,203.18,203.15,8.17]
[1757230890494,8.05,203.18,203.12,4.4299]
[1757230890793,8.05,203.18,203.14,8.17]
[1757230891094,8.05,203.18,203.13,8.17]
[1757230891295,8.05,203.24,203.13,8.17]
[1757230895199,2.40281963,203.19,203.09,8.17]
[1757230895394,8.05,203.18,203.06,33.29281963]
[1757230895596,8.05,203.18,203.07,8.8562131]
[1757230895791,8.05,203.18,203.08,4.29708043]
[1757230895996,8.05,203.18,203.06,33.29281963]
[1757230896195,8.05,203.18,203.07,8.85644632]
[1757230896401,8.05,203.18,203.08,4.2971949]
[1757230896604,2.40281963,203.19,203.06,33.29281963]
[1757230896803,8.05,203.18,203.07,8.85613871]
[1757230897003,8.05,203.18,203.08,12.46704537]
[1757230897208,8.05,203.18,203.08,8.17]
[1757230898806,8.05,203.15,203.08,8.17]
[1757230899410,5.53291622,203.19,203.11,8.17]
[1757230899611,8.05,203.2,203.12,4.29675544]
[1757230899914,8.05,203.2,203.11,8.17]
[1757230900113,8.05,203.2,203.12,8.8548549]
[1757230900314,8.05,203.2,203.11,8.17]
[1757230900504,8.05,203.2,203.12,8.85607612]
[1757230900705,8.05,203.2,203.11,8.17]
[1757230900914,8.05,203.2,203.12,8.85601382]
[1757230901115,8.05,203.2,203.11,8.17]
[1757230901320,8.05,203.2,203.12,8.85628391]
[1757230901516,8.05,203.2,203.13,1.53572234]
[1757230902615,8.05,203.2,203.15,1.53572234]
[1757230902915,8.05,203.22,203.15,1.53572234]
[1757230903417,8.05,203.22,203.15,9.70572234]
[1757230904217,8.05,203.22,203.15,8.17]
[1757230904416,8.05,203.22,203.16,1.53572234]
[1757230908222,13.58291622,203.22,203.16,1.53572234]
[1757230914922,5.53291622,203.21,203.15,9.70572234]
[1757230915617,7.66,203.2,203.15,9.70572234]
[1757230915824,5.53291622,203.21,203.15,9.70572234]
[1757230916022,7.66,203.2,203.15,9.70572234]
[1757230917329,5.53291622,203.21,203.15,9.70572234]
[1757230918227,7.66,203.2,203.16,12.39192928]
[1757230918428,7.66,203.2,203.16,8.08]
[1757230918630,5.53291622,203.21,203.16,8.08]
[1757230918826,5.53291622,203.21,203.15,1.53572234]
[1757230919023,7.66,203.2,203.17,9.61572234]
[1757230919331,7.66,203.19,203.17,9.61572234]
[1757230926534,7.66,203.19,203.17,8.08]
[1757230928435,5.53291622,203.2,203.16,1.53572234]
[1757230928630,7.66,203.19,203.16,9.61572234]
[1757230928836,5.53291622,203.2,203.16,9.61572234]
[1757230929137,5.53291622,203.2,203.15,1.53572234]
[1757230929338,5.53291622,203.2,203.16,16.9732363]
[1757230929637,7.66,203.19,203.16,8.08]
[1757230930431,7.66,203.19,203.15,1.53572234]
[1757230930635,7.66,203.19,203.17,8.08]
[1757230931740,5.53291622,203.2,203.16,8.08]
[1757230932539,7.66,203.19,203.16,8.08]
[1757230932739,5.53291622,203.2,203.16,8.08]
[1757230933042,7.66,203.19,203.16,8.08]
[1757230933244,5.53291622,203.2,203.16,8.08]
[1757230933544,7.66,203.19,203.16,8.08]
[1757230934644,5.53291622,203.2,203.16,8.08]
[1757230935048,7.66,203.19,203.16,8.08]
[1757230935248,5.53291622,203.2,203.16,8.08]
[1757230935446,5.53291622,203.2,203.13,9.61572234]
[1757230935643,7.66,203.17,203.14,8.89635154]
[1757230935848,7.66,203.17,203.09,8.08]
[1757230935849,5.53291622,203.15,203.09,8.08]
[1757230936050,13.19291622,203.15,203.11,8.08]
[1757230936347,7.66,203.15,203.12,12.40031994]
[1757230936548,5.53291622,203.16,203.12,8.08]
[1757230936749,7.66,203.15,203.12,8.08]
[1757230936944,5.53291622,203.16,203.12,8.08]
[1757230937449,7.66,203.15,203.1,1.53572234]
[1757230937646,7.66,203.15,203.11,8.89666529]
[1757230937952,7.66,203.15,203.13,8.08]
[1757230939851,7.41,203.16,203.1,9.08572234]
[1757230940154,7.41,203.16,203.11,8.89499306]
[1757230940450,104.45599411,203.17,203.12,4.31773635]
[1757230940753,7.41,203.16,203.12,7.55]
[1757230941248,104.45599411,203.17,203.12,7.55]
[1757230941750,7.41,203.16,203.12,7.55]
[1757230941952,104.45599411,203.17,203.12,7.55]
[1757230942140,7.41,203.16,203.12,7.55]
[1757230942344,104.45599411,203.17,203.12,7.55]
[1757230943049,7.41,203.16,203.12,7.55]
[1757230943451,104.45599411,203.17,203.12,7.55]
[1757230943652,7.41,203.16,203.12,7.55]
[1757230944046,104.45599411,203.17,203.12,7.55]
[1757230944351,7.41,203.15,203.12,7.55]
[1757230945553,104.45599411,203.17,203.12,7.55]
[1757230946045,7.41,203.16,203.12,7.55]
[1757230946242,104.45599411,203.17,203.12,7.55]
[1757230946550,7.41,203.16,203.12,7.55]
[1757230946846,104.45599411,203.17,203.12,7.55]
[1757230947050,7.41,203.16,203.12,7.55]
[1757230947552,104.45599411,203.17,203.12,7.55]
[1757230948052,7.41,203.16,203.12,7.55]
[1757230949053,104.45599411,203.17,203.12,7.55]
[1757230949353,7.41,203.16,203.1,1.53572234]
[1757230949552,7.41,203.16,203.11,8.85381594]
[1757230949742,1.53572234,203.15,203.12,4.31690164]
[1757230949943,7.06863856,203.15,203.1,7.55]
[1757230950258,7.41,203.12,203.05,7.55]
[1757230950448,1.53572234,203.13,203.06,8.85553076]
[1757230950752,8.94572234,203.13,203.07,17.9412531]
[1757230950949,8.94572234,203.13,203.08,8.85553076]
[1757230950950,7.41,203.12,203.08,8.85553076]
[1757230951153,7.41,203.12,203.09,16.40553076]
[1757230951447,7.41,203.12,203.1,4.31774138]
[1757230951653,7.41,203.12,203.07,1.53572234]
[1757230951848,7.41,203.12,203.08,8.85363189]
[1757230952060,7.41,203.12,203.1,7.55]
[1757230952355,12.94291622,203.16,203.11,4.31543978]
[1757230952550,7.41,203.15,203.1,1.53572234]
[1757230952751,104.45599411,203.17,203.11,4.31543521]
[1757230952953,7.41,203.16,203.1,9.08572234]
[1757230953152,104.45599411,203.17,203.11,4.32543888]
[1757230953345,7.41,203.16,203.1,9.08572234]
[1757230953544,104.45599411,203.17,203.11,4.32529867]
[1757230953747,7.41,203.16,203.1,9.08572234]
[1757230953947,7.41,203.16,203.11,11.8752895]
[1757230954146,104.45599411,203.17,203.1,1.53572234]
[1757230954349,104.45599411,203.17,203.11,4.32518322]
[1757230954657,104.45599411,203.17,203.1,1.53572234]
[1757230954858,111.86599411,203.17,203.11,11.87518322]
[1757230955058,104.45599411,203.17,203.12,4.32518322]
[1757230955254,7.41,203.16,203.13,7.55]
[1757230955455,104.45599411,203.17,203.13,7.55]
[1757230955648,7.41,203.16,203.13,7.55]
[1757230956159,7.41,203.16,203.14,4.32346204]
[1757230956459,7.41,203.16,203.11,7.55]
[1757230956758,7.41,203.16,203.13,7.55]
[1757230958652,98.92307789,203.17,203.13,7.55]
[1757230958857,7.41,203.16,203.13,7.55]
[1757230959258,98.92307789,203.17,203.13,7.55]
[1757230959654,7.41,203.16,203.13,7.55]
[1757230959854,7.41,203.16,203.12,7.55]
[1757230960057,12.94291622,203.19,203.14,7.55]
[1757230960453,12.94291622,203.19,203.13,1.53572234]
[1757230960658,7.41,203.18,203.15,7.55]
[1757230960854,5.53291622,203.19,203.15,7.55]
[1757230961061,7.41,203.18,203.15,7.55]
[1757230961257,5.53291622,203.19,203.15,7.55]
[1757230961461,7.41,203.18,203.15,7.55]
[1757230962762,5.53291622,203.19,203.15,7.55]
[1757230962960,7.41,203.18,203.15,7.55]
[1757230963863,5.53291622,203.19,203.15,7.55]
[1757230964364,7.41,203.18,203.15,7.55]
[1757230967267,7.41,203.18,203.1,7.55]
[1757230967462,7.41,203.18,203.12,7.55]
[1757230967663,5.53291622,203.19,203.13,8.89042859]
[1757230967962,5.53291622,203.19,203.14,16.44042859]
[1757230968164,5.53291622,203.19,203.14,7.55]
[1757230968366,7.41,203.18,203.14,7.55]
[1757230968962,8.26663851,203.22,203.16,7.55]
[1757230969162,7.41,203.28,203.2,7.91]
[1757230969368,7.41,203.28,203.22,7.91]
[1757230969665,7.47,203.3,203.23,8.88689815]
[1757230969865,7.47,203.3,203.24,16.79689815]
[1757230970065,7.47,203.3,203.25,8.88689815]
[1757230970369,2.39945993,203.34,203.26,4.32333704]
[1757230970370,21.16,203.32,203.26,4.32333704]
[1757230970559,21.16,203.32,203.27,4.32333704]
[1757230970766,7.47,203.31,203.28,4.32333704]
[1757230971069,7.47,203.31,203.25,7.91]
[1757230981673,14.78,203.44,203.27,2.39945993]
[1757230981877,7.47,203.43,203.33,7.91]
[1757230982275,7.47,203.43,203.34,7.91]
[1757230983379,7.47,203.43,203.35,2.39945993]
[1757230983569,7.47,203.43,203.36,7.91]
[1757230985472,7.47,203.49,203.36,7.91]
[1757230985677,9.86945993,203.49,203.36,7.91]
[1757230986279,2.39945993,203.48,203.36,7.91]
[1757230986479,7.47,203.47,203.36,7.91]
[1757230987880,7.47,203.41,203.29,7.91]
[1757230988080,9.86945993,203.39,203.29,7.91]
[1757230988275,9.86945993,203.39,203.3,4.40414795]
[1757230988479,9.86945993,203.39,203.29,7.91]
[1757230989079,9.86945993,203.39,203.3,4.40402254]
[1757230989282,9.86945993,203.39,203.31,7.91]
[1757230992584,9.86945993,203.36,203.27,7.91]
[1757230998185,9.86945993,203.36,203.28,4.40744376]
[1757230998386,9.86945993,203.36,203.27,7.91]
[1757230998686,9.86945993,203.36,203.28,4.40774849]
[1757230998886,9.86945993,203.36,203.27,7.91]
[1757230999091,9.86945993,203.36,203.28,4.40774849]
[1757230999386,9.86945993,203.36,203.27,7.91]
[1757231000089,9.86945993,203.36,203.28,4.41022818]
[1757231000393,9.86945993,203.36,203.27,7.91]
[1757231000691,9.86945993,203.36,203.28,4.41063955]
[1757231000885,9.86945993,203.36,203.27,7.91]
[1757231001086,9.86945993,203.36,203.28,4.41063955]
[1757231001287,9.86945993,203.36,203.27,7.51]
[1757231001585,9.86945993,203.36,203.29,7.51]
[1757231006292,9.86945993,203.36,203.3,4.41886949]
[1757231006492,9.86945993,203.36,203.29,7.51]
[1757231006693,9.86945993,203.36,203.3,4.41887118]
[1757231006894,9.86945993,203.36,203.29,7.51]
[1757231007095,9.86945993,203.36,203.3,4.41887118]
[1757231007294,9.86945993,203.36,203.29,7.51]
[1757231007492,9.86945993,203.36,203.3,4.42086543]
[1757231007692,9.86945993,203.36,203.29,7.51]
[1757231007892,9.86945993,203.36,203.3,4.42086543]
[1757231008092,9.86945993,203.36,203.29,7.51]
[1757231008395,9.86945993,203.36,203.3,4.42310305]
[1757231008594,9.86945993,203.36,203.29,7.51]
[1757231008893,9.86945993,203.36,203.3,4.42309799]
[1757231009090,9.86945993,203.36,203.29,7.51]
[1757231009290,9.86945993,203.36,203.3,4.42561944]
[1757231009494,9.86945993,203.36,203.29,7.51]
[1757231009689,9.86945993,203.36,203.3,4.42562112]
[1757231009889,9.86945993,203.36,203.29,7.51]
[1757231010089,9.86945993,203.36,203.3,4.42562112]
[1757231010396,9.86945993,203.36,203.31,4.42562112]
[1757231010589,9.86945993,203.36,203.29,7.51]
[1757231010791,9.86945993,203.36,203.3,4.42882535]
[1757231011096,9.86945993,203.36,203.31,4.43171938]
[1757231011298,7.82,203.35,203.29,7.51]
[1757231011593,7.82,203.35,203.3,4.43212602]
[1757231011790,2.39945993,203.36,203.31,4.43212602]
[1757231012094,7.82,203.35,203.29,7.51]
[1757231012295,2.39945993,203.36,203.3,4.43596789]
[1757231012490,7.82,203.35,203.31,4.43596789]
[1757231012690,7.82,203.35,203.28,7.51]
[1757231012890,7.82,203.35,203.29,9.05245124]
[1757231013189,7.82,203.35,203.28,7.51]
[1757231013190,2.39945993,203.36,203.3,9.05692128]
[1757231013397,2.39945993,203.36,203.31,4.43596789]
[1757231013590,2.39945993,203.36,203.32,4.43596789]
[1757231013786,7.82,203.35,203.28,7.51]
[1757231013990,7.82,203.35,203.29,9.06251693]
[1757231014186,2.39945993,203.36,203.3,9.06251693]
[1757231014396,7.82,203.35,203.31,4.44122984]
[1757231014593,2.39945993,203.35,203.32,4.44122984]
[1757231014897,7.82,203.34,203.27,7.51]
[1757231015194,7.82,203.34,203.29,7.51]
[1757231015394,2.39945993,203.35,203.3,16.57493683]
[1757231015588,2.39945993,203.35,203.31,4.44241575]
[1757231015789,2.39945993,203.35,203.32,4.44241575]
[1757231016094,2.39945993,203.35,203.3,7.51]
[1757231016395,7.82,203.34,203.31,4.44325281]
[1757231016694,7.82,203.34,203.32,4.44325281]
[1757231016990,7.82,203.34,203.3,7.51]
[1757231017195,2.39945993,203.35,203.31,4.44365768]
[1757231017496,2.39945993,203.35,203.32,4.44365768]
[1757231017795,2.39945993,203.35,203.3,7.51]
[1757231017996,2.39945993,203.35,203.31,4.44440812]
[1757231018290,2.39945993,203.32,203.23,7.51]
[1757231018488,2.39945993,203.29,203.24,9.07464814]
[1757231018692,7.82,203.28,203.25,4.62747251]
[1757231018893,7.82,203.28,203.26,7.51]
[1757231019698,2.39945993,203.29,203.26,7.51]
[1757231019990,2.39945993,203.29,203.19,7.51]
[1757231020196,2.39945993,203.29,203.21,7.51]
[1757231020391,2.39945993,203.29,203.23,7.51]
[1757231020696,2.39945993,203.29,203.24,4.62822239]
[1757231020899,2.39945993,203.29,203.26,7.51]
[1757231021297,10.21945993,203.29,203.26,7.51]
[1757231023000,10.21945993,203.29,203.19,7.51]
[1757231023197,10.21945993,203.29,203.21,7.51]
[1757231023398,10.21945993,203.29,203.23,7.51]
[1757231023697,10.21945993,203.29,203.24,4.63034661]
[1757231023900,10.21945993,203.29,203.26,7.51]
[1757231024400,7.82,203.28,203.26,7.51]
[1757231025702,9.35437547,203.28,203.26,7.51]
[1757231026996,9.35437547,203.28,203.2,7.51]
[1757231027202,1.53437547,203.25,203.22,7.51]
[1757231027503,1.53437547,203.25,203.24,7.51]
[1757231030306,8.56,203.36,203.24,7.51]
[1757231030506,1.53437547,203.26,203.24,7.51]
[1757231030806,1.53437547,203.26,203.18,7.95]
[1757231031006,1.53437547,203.26,203.2,7.95]
[1757231034911,1.53437547,203.26,203.21,9.01511502]
[1757231035111,1.53437547,203.26,203.21,4.40061904]